Cogmind - Beta 16.1 @@@ ROGUE MODE // 2026.04.02 @ 12:57:51 Player: Vitim Result: Destroyed by S-10 Pest with Light Assault Rifle Performance ------------- Evolutions (0) 0 Regions Visited (1) 200 Robots Destroyed (43) 215 Value Destroyed (512) 512 Prototype IDs (0) 0 Alien Tech Used (0) 0 Bonus (0) 0 TOTAL SCORE: 927 Bonus ------- None Cogmind --------- Core Integrity 0/250 Matter 270/300 Energy 205/250 System Corruption 1% Temperature Hot (272) Movement Rolling (95) Ox1 Location -10/Materials Parts ------- > --- POWER (1) -------- Ion Engine > --- PROPULSION (2) --- Wheel Wheel > --- UTILITY (2) ------ Medium Storage Unit Seismic Detector > --- WEAPON (2) ------- Medium Laser Beam Cannon > --- INVENTORY (10) --- Structural Scanner Improved Terrain Scanner Assault Rifle Assault Rifle Grenade Launcher Grenade Launcher Datajack Mining Laser Mining Laser Peak State ------------ > --- POWER ------------ Ion Engine > --- PROPULSION ------- Compact Wheel Compact Wheel > --- UTILITY ---------- Improved Terrain Scanner Seismic Detector > --- WEAPON ----------- Medium Laser Medium Laser > --- INVENTORY -------- Medium Laser Mining Laser [Rating: 9] Favorites ----------- Power Ion Engine Engine Ion Engine Propulsion Compact Wheel Treads Light Treads Wheel Compact Wheel Utility Seismic Detector Device Seismic Detector Storage Medium Storage Unit Weapon Medium Laser Energy Gun Medium Laser Energy Cannon Beam Cannon Special Weapon Mining Laser Special Melee Weapon Datajack Build | -11 -10 ------- Run | Yrd Mat Slots Evolved . | . . Power . | . . Propulsion . | . . Utility . | . . Weapon . | . . Parts Attached 24 | 8 16 Power 3 | 1 2 Engine 3 | 1 2 Core . | . . Reactor . | . . Propulsion 7 | 3 4 Treads 1 | . 1 Leg . | . . Wheel 6 | 3 3 Hover . | . . Flight . | . . Utility 7 | 2 5 Device 5 | 2 3 Storage 2 | . 2 Processor . | . . Hackware . | . . Protection . | . . Artifact . | . . Weapon 7 | 2 5 Energy Gun 3 | 2 1 Energy Cannon 1 | . 1 Ballistic Gun . | . . Ballistic Cannon . | . . Launcher . | . . Special Weapon 2 | . 2 Impact Weapon . | . . Slashing Weapon . | . . Piercing Weapon . | . . Special Melee Weapon 1 | . 1 Unidentified Prototypes . | . . Parts Lost 7 | . 7 Power 1 | . 1 Propulsion 3 | . 3 Utility 1 | . 1 Weapon 2 | . 2 Highest Loss Streak 2 | . 2 To Critical Strikes . | . . Average Backups 4 | 1 5 Power . | . . Propulsion . | . . Utility . | . . Weapon 3 | 1 3 Tool/Special . | . . Unused Backups 4 | . 4 Power . | . . Propulsion . | . . Utility . | . . Weapon 4 | . 4 Tool/Special . | . . Average Slot Usage (%) 89 | . 89 Engine 12 | . 12 Treads 1 | . 1 Wheel 22 | . 22 Device 17 | . 17 Storage 9 | . 9 Energy Gun 19 | . 19 Energy Cannon 5 | . 5 Peak Build Rating 9 | 9 9 Average Rating 6 | 4 7 On Entrance 4 | . 9 Avg Prop Armor Cover (%) 3 | . 3 Naked Turns . | . . Heaviest Build 21 | 11 21 Greatest Support 32 | 32 32 Greatest Overweight (x) 6 | . 6 Average Overweight (x) . | . . Largest Inventory Capacity 10 | 5 10 Average Capacity 7 | 5 7 Most Carried 10 | 4 10 Average Carried 4 | 2 5 Final Capacity 10 | 5 10 Final Carried 9 | 3 9 Class Distribution -------------------- 80% | Mutant 19% | Scavenger-Mutant Dominant Class ---------------- Mutant | -10/Materials Resources | -11 -10 ----------- Run | Yrd Mat Matter Collected 465 | 278 187 Remotely . | . . Salvage Created 1364 | 220 1144 Parts 87 | 26 61 Haulers Intercepted 1 | . 1 Recyclers Shooed 5 | 1 4 Parts Field Recycled . | . . Retrieved Matter . | . . Parts Self-Destructed . | . . Prevented . | . . Parts Restored . | . . Kills | -11 -10 ------- Run | Yrd Mat Combat Hostiles Destroyed 15 | . 15 Guns 10 | . 10 Cannons 5 | . 5 Classes Destroyed 8 | 3 5 Worker 8 | 2 6 Builder 7 | . 7 Tunneler 6 | 5 1 Hauler 1 | . 1 Recycler 5 | 1 4 Watcher 1 | . 1 Swarmer 6 | . 6 Grunt 9 | . 9 Best Kill Streak 5 | 4 5 Combat Bots Only 3 | . 3 Max Kills in Single Turn 1 | 1 1 Gunslinging . | . . Exploded . | . . Melee . | . . Uniques/NPCs Destroyed . | . . Combat | -11 -10 -------- Run | Yrd Mat Hostile Shots Fired 119 | . 119 Missed 34 | . 34 Hits 85 | . 85 Projectile 85 | . 85 Critical Strikes 1 | . 1 Damage Taken 830 | . 830 Core 254 | . 254 Absorbed by Shields . | . . Regen/Repaired (Parts) 63 | . 63 Core Remaining (%) 100 | 100 . Volleys Fired 142 | 10 132 Largest 2 | 2 2 Hottest 200 | 100 200 Shots Fired 239 | 20 219 Gun 183 | 20 163 Cannon 52 | . 52 Launcher . | . . Special 4 | . 4 Kinetic . | . . Thermal 239 | 20 219 Explosive . | . . Electromagnetic . | . . Robot Hit Streak 15 | 15 7 Robot Miss Streak 7 | . 7 Penetration Max . | . . Secondary Targets 1 | . 1 Max Gunslinging Chain 1 | . 1 Shots Hit Robots 127 | 15 112 Core Hits 57 | 9 48 Critical Kills . | . . Critical Parts Destroyed . | . . Critical Strikes 8 | 1 7 Burn 8 | 1 7 Melee Attacks 5 | . 5 Impact . | . . Slashing . | . . Piercing . | . . Sneak Attacks 5 | . 5 Combat Hostiles . | . . Follow-up Attacks . | . . Damage Inflicted 1782 | 188 1594 Guns 1240 | 188 1052 Cannons 542 | . 542 Explosions . | . . Melee . | . . Ramming . | . . Kinetic . | . . Thermal 1782 | 188 1594 Explosive . | . . Electromagnetic . | . . Impact . | . . Slashing . | . . Piercing . | . . Highest Corruption 1 | . 1 Average Corruption 1 | . 1 Corruption Purged . | . . Corruption Blocked . | . . Effects 12 | . 12 Message Errors 3 | . 3 Matter Fused 3 | . 3 Heat Flow Errors 2 | . 2 Energy Discharges 1 | . 1 Data Loss (minor) 1 | . 1 Data Loss (major) 1 | . 1 Misfires 1 | . 1 Overload Shots . | . . Overflow Damage . | . . Projectiles . | . . Explosions . | . . Melee . | . . Knockbacks . | . . Impact . | . . Kinetic . | . . Secondary . | . . Self-Inflicted Damage . | . . Shots . | . . Rammed . | . . Targets Rammed . | . . Kicked . | . . Crushed . | . . Highest Temperature 494 | 195 494 Average Temperature 124 | 70 128 Received Heat Transfer 243 | . 243 Effects 6 | . 6 Shutdowns 1 | . 1 Energy Bleed 3 | . 3 Interference 2 | . 2 Siege Activations . | . . Martial Activations . | . . Shielding Activations . | . . Robots Disrupted . | . . Combat Hostiles . | . . Robots Corrupted . | . . Combat Hostiles . | . . Parts Fried . | . . Impact Corruptions . | . . Robots Melted . | . . Combat Hostiles . | . . Parts Melted 9 | 1 8 Heat Transferred 5402 | 629 4773 Parts Sabotaged . | . . Parts Stolen . | . . Parts Stripped . | . . Power Chain Reactions . | . . Alert | -11 -10 ------- Run | Yrd Mat Maximum Alert Level . | . . Low Security (%) 100 | 100 100 Level 1 . | . . Level 2 . | . . Level 3 . | . . Level 4 . | . . Level 5 . | . . High Security . | . . Max Security . | . . Peak Influence 160 | 20 160 Initial . | . . Average 52 | 3 56 Influence Increases 541 | 40 501 Destroy 0b10 Robot/C 300 | . 300 Destroy 0b10 Robot/NC 140 | 40 100 Destroy Leader 54 | . 54 Successful Hack 14 | . 14 Destroy Structure 3 | . 3 Lose Combat Pursuer 30 | . 30 Influence Decreases 439 | 40 399 Time Decay 369 | 40 329 Lost Part 70 | . 70 Squads Dispatched 2 | . 2 Investigation 1 | . 1 Extermination . | . . Reinforcement 1 | . 1 Assault . | . . Garrison . | . . Intercept . | . . Searches Triggered . | . . Construction Impeded . | . . Haulers Reinforced . | . . Active Scanning Responses . | . . Cargo Convoy Interrupts . | . . Stealth | -11 -10 --------- Run | Yrd Mat Distress Signals 2 | . 2 Communications Jammed . | . . Distress Signals . | . . Times Spotted 26 | . 26 Peak Tracking Total 5 | . 5 Tactical Retreats 2 | . 2 Traps | -11 -10 ------- Run | Yrd Mat Traps Triggered 1 | . 1 Indirectly . | . . Trap Hack Attempts . | . . Triggered . | . . Disarmed . | . . Reprogrammed . | . . Reused . | . . Traps Extracted . | . . Installed . | . . Triggered . | . . Machines | -11 -10 ---------- Run | Yrd Mat Machines Disabled . | . . Max in Single Turn . | . . Machines Repaired . | . . Machines Dismantled . | . . Machines Sabotaged . | . . Overloaded Fab Kills . | . . Hacking | -11 -10 --------- Run | Yrd Mat Machines Accessed 4 | . 4 Terminals 3 | . 3 Fabricators . | . . Repair Stations 1 | . 1 Recycling Units . | . . Scanalyzers . | . . Garrison Access . | . . Total Hacks 15 | . 15 Successful 7 | . 7 Failed 8 | . 8 Catastrophic . | . . Database Lockouts . | . . Manual . | . . Terminals 11 | . 11 Fabricators . | . . Repair Stations 4 | . 4 Recycling Units . | . . Scanalyzers . | . . Garrison Access . | . . Terminal Hacks 4 | . 4 Record 4 | . 4 Fabricator Hacks . | . . Repair Station Hacks 3 | . 3 Scan Component 2 | . 2 Repair 1 | . 1 Recycling Unit Hacks . | . . Scanalyzer . | . . Garrison Access Hacks . | . . Unauthorized Hacks . | . . Terminals . | . . Fabricators . | . . Repair Stations . | . . Recycling Units . | . . Scanalyzers . | . . Garrison Access . | . . Data Cores Recovered . | . . Used . | . . Hacking Detections 4 | . 4 Full Trace Events 4 | . 4 Feedback Events 1 | . 1 Corruption 1 | . 1 Feedback Blocked . | . . Robot Schematics Acquired . | . . Robots Built . | . . Authchips . | . . Time . | . . Total Robot Build Rating . | . . Part Schematics Acquired . | . . Parts Built . | . . Authchips . | . . Time . | . . Total Part Build Rating . | . . Part Studies Acquired . | . . Parts Repaired 1 | . 1 Time 26 | . 26 Parts Recycled . | . . Recycled Matter . | . . Retrieved Matter . | . . Retrieved Components . | . . Parts Scanalyzed . | . . Part Schematics Acquired . | . . Parts Damaged . | . . Bothacking | -11 -10 ------------ Run | Yrd Mat Used RIF Installer . | . . Robots Hacked 2 | . 2 Non-combat 2 | . 2 Combat . | . . Robot Hacks Applied 5 | . 5 parse_system 2 | . 2 no_distress 2 | . 2 check_alert 1 | . 1 Relay Couplers Released . | . . Fabnet Peak Effective % . | . . Robots Rewired . | . . Allies Hacked . | . . Hacks Repelled . | . . Allies | -11 -10 -------- Run | Yrd Mat Total Allies . | . . Largest Group . | . . Highest-Rated Group . | . . Highest-Rated Ally . | . . Total Orders . | . . Ally Attacks . | . . Total Damage . | . . Kills . | . . Allies Corrupted . | . . Allies Melted . | . . Intel | -11 -10 ------- Run | Yrd Mat Active Infowar (turns) 1630 | 34 1596 Sensors 26 | . 26 Terrain 488 | 34 454 Structural 121 | . 121 Seismic 1406 | 8 1398 Robot Analysis Total . | . . Derelict Logs Recovered . | . . Drone Launches . | . . Drone Recoveries . | . . Exploration | -11 -10 ------------- Run | Yrd Mat Turns Passed 1903 | 154 1749 Spaces Moved 507 | 47 460 Core 14 | 4 10 Treads 34 | . 34 Legs . | . . Wheels 459 | 43 416 Hover . | . . Flight . | . . Fastest Speed 50 | 50 80 Average Speed 106 | 90 107 Slowest Speed 350 | 100 350 Overloaded Moves . | . . Propulsion Burnouts . | . . Robots Hopped . | . . Potential Cave-ins . | . . Cave-ins Triggered . | . . Exploration Rate (%) 25 | 3 47 Regions Visited 1 Branch Regions . Pre-discovered Areas . | . . Known Exits Taken . | . . Unknown Exits Taken 1 | 1 . Scrap Searched . | . . Spaces Dug 1 | . 1 Terrain Destroyed 1 | . 1 Melee . | . . Projectile 1 | . 1 AOE . | . . Terrain Rammed . | . . Walls Destroyed . | . . Machines Disabled . | . . Actions | -11 -10 --------- Run | Yrd Mat Total 1623 | 139 1484 Wait 903 | 63 840 Move 506 | 46 460 Hop . | . . Pick Up 31 | 11 20 Fast Attach . | . . Attach 18 | 8 10 Detach 1 | . 1 Swap 10 | . 10 Drop 7 | 1 6 Fire 142 | 10 132 Melee 5 | . 5 Ram . | . . Kick . | . . Crush . | . . Escape Stasis . | . . Rewire . | . . Trap . | . . Miscellaneous . | . . Route ------- -11/Scrapyard -10/Materials (discovered 1 exit: [*Sub]) History --------- Turn | Location | Event 18 | -11/Scrapyard | Discovered new exit (range 16) 155 | -11/Scrapyard | Entered Materials 501 | -10/Materials | Build established: Mutant 742 | -10/Materials | Discovered new exit (range 16) 1252 | -10/Materials | Core integrity fell below 50% 1870 | -10/Materials | Repaired Beam Cannon 1889 | -10/Materials | Core integrity fell below 20% 1904 | -10/Materials | Destroyed by S-10 Pest with Light Assault Rifle Last Messages --------------- Ready to Repair: Seismic Detector Rating: 1 Time: 26 >>Scan(Beam Cannon) Scanning Beam Cannon... Ready to Repair: Beam Cannon Rating: 1 Time: 26 >>Repair Repairing Beam Cannon... ETC: 26 01848_ Acquired Sensor Array. 01870_ Repair station completes Beam Cannon repairs. 01876_ Dropped Sensor Array. 01877_ Acquired Beam Cannon. 01903_ S-10 Pest heat spikes uncontrollably. 01904_ Overheating: Energy bleed (-41). 01904_ S-10 Pest overheating. Map ----- +----------------------------------------------------+ | ????????????????????????????????????????????? | | ????????????????????????????????????????????? | | ????????????????????????????????????????????? | | ????????????????????????????????????????????? | | ????????????????????????????????????????????? | | ????????????????????????????????????????????? | | ????????????????????????????????????????????? | | ???????????????????????????????????????? ?? | | ???????????????????????????????????????? #? | | ???????????????????????????????????????? #? | | ???????????????????????????????????????# ## | | ???????????????????????????????????????# ## | | ???????????????????????????????????????# ## | | ?????????????????############??????????# ## | | ?????????????????############??????"""?# % ## | | ?????????????????## ]##??????""" # [ ## | | ?????????????????##""" ##??????? # % ## | | ?????????????????##"R ! * ##????????" # ## | | ?????????????????##""" [##????????? + ## | | ?????????????????## ##????????? # %## | | ???????????? # ??## """ ##???????? # ## | | ???????????? + ??## """ ##????????### ## | | ??????????? # ?## """ ##????????## # | | ?????? #+?#### ## ############% %% | | ?????? # ## s ##/################## T | | ????? + s @ a !%= % %= | | ?????? #s " ################ # | | ?????? # k ################# ## | | ?????? # ## ##+####????????????###* # | | ?????? # ? ######## ?????????????## # | | ???????????######## ""????????????????## + | | ??????????????????? "T????????????????## # | | ??????????????????? ""????????????????## # | | ??????????????????? ????????????????## # | | ???????????????????###????????????????## | ## | | ??????????????????????????????????????## T# | | ??????????????????????????????????????## ## | | ??????????????????????????????????????## # | | ??????????????????????????????????????## # | | ??????????????????????????????????????## # | | ?????????????????????????????????####### # | | ?????????????????????????????????####### # | | ?????????????????????????????????## # | | ?????????????????????????????????## ^ + | | ????????????????????????????????? # ^ ^ # | | ????????????????????????????????? # ###### | | ????????????????????????????????? # ###### | | ????????????????????????????????? # ??##### | | ????????????????????????????????? + ?????## | | ????????????????????????????????? # ??????## | +----------------------------------------------------+ Best States ------------- Heat Dissipation 25 Energy Generation 10 Energy Capacity 250 Matter Stores 300 Matter Capacity 300 Sight Range 16 Robot Scan Range 14 Terrain Scan Range 16 Terrain Scan Density 10 Evasion (%) 44 Recoil Reduction 1 Item Schematics ----------------- None Robot Schematics ------------------ None Fabricated ------------ Nothing Repaired ---------- Beam Cannon | 37% | -10/Materials Studied --------- None Alien Tech Used ----------------- None Achievements -------------- None Challenges ------------ None Game ------ Seed CannonRecoilNeutralizer Manual? 0 Play Time 00:24:18 Cumulative 4.3 hours Start 2026.04.02 @ 12:36:08 End 2026.04.02 @ 12:57:51 Sessions 1 Manual Loads 0 Difficulty Rogue Special Mode None Game No. 9 Rogue 9 Adventurer 0 Explorer 0 Win Type - Total 0 Types 0/0/0/0/0/0/0/0/0/0 Lore% 5 Gallery% 6 Achievement% 7 Wizard Run 0 Options --------- Layout 1 ASCII 0 Keyboard 0 Movement Mouse Keybinds 0 Fullscreen 1 Font 32/SmallcapsGlow Map View 77x35 Zoom Use 0% Tactical HUD 1 Map Filters NONE Filters NONE Steam 1 RUN: cc464fe4-3767-4a25-b267-204c1eee984a